[Event "FIDE World Junior U20-ch Girls 2025"]
[Site "Petrovac"]
[Date "2025.03.01"]
[Round "5.26"]
[White "Petricenco, Ana"]
[Black "Abdinova, Narmin"]
[Result "1-0"]
[Annotator "ChessBase"]
[ECO "C78"]
[WhiteElo "1973"]
[BlackElo "2186"]
[PlyCount "89"]
[EventDate "2025.02.23"]
[EventType "swiss"]
[EventCountry "MNE"]
[SourceTitle "playchess.com"]
[Source "ChessBase"]
[SourceQuality "1"]
[TimeControl "40/5400+30:1800+30"]

1. e4 {[%emt 0:00:04]} e5 {[%emt 0:00:30]} 2. Nf3 {[%emt 0:00:11]} Nc6 {[%emt 0:00:05]} 3. Bb5 {[%emt 0:00:27]} a6 {[%emt 0:00:07]} 4. Ba4 {[%emt 0:00:09]} Nf6 {[%emt 0:00:05]} 5. O-O {[%emt 0:00:16]} b5 {[%emt 0:00:25]} 6. Bb3 {[%emt 0:00:24]} Bc5 {[%emt 0:00:09]} 7. a4 {[%emt 0:01:42]} Rb8 {[%emt 0:00:09]} 8. c3 {[%emt 0:01:01]} d6 {[%emt 0:00:04]} 9. d4 {[%emt 0:00:36]} Bb6 {[%emt 0:00:10]} 10. a5 {[%emt 0:00:40]} Ba7 {[%emt 0:00:11]} 11. h3 {[%emt 0:00:29]} O-O {[%emt 0:06:59]} 12. Be3 {[%emt 0:02:55]} Ra8 {[%emt 0:01:25]} 13. Nbd2 {[%emt 0:02:28]} Bb7 {[%emt 0:07:51]} 14. Re1 {[%emt 0:08:00]} Re8 {[%emt 0:04:23]} 15. dxe5 {[%emt 0:15:17]} dxe5 {[%emt 0:03:56]} 16. Qc2 {[%emt 0:06:27]} Bxe3 {[%emt 0:03:33]} 17. Rxe3 {[%emt 0:00:09]} Nh5 {[%emt 0:01:59]} 18. g3 {[%emt 0:05:35]} Qd7 {[%emt 0:06:54]} 19. Rd3 {[%emt 0:04:09]} Qe7 {[%emt 0:00:31]} 20. Bd5 {[%emt 0:06:39]} Nf6 {[%emt 0:04:47]} 21. Bb3 {[%emt 0:06:54]} Nd8 {[%emt 0:10:22]} 22. Re3 {[%emt 0:01:59]} c5 {[%emt 0:00:20]} 23. Bd5 {[%emt 0:07:26]} Qc7 {[%emt 0:11:32]} 24. c4 {[%emt 0:04:58]} Ne6 {[%emt 0:06:33]} 25. Bxe6 {[%emt 0:07:33]} Rxe6 {[%emt 0:00:02]} 26. Nb3 {[%emt 0:01:31]} b4 {[%emt 0:03:04]} 27. Nh4 {[%emt 0:02:13]} Rd8 {[%emt 0:04:51]} 28. f3 {[%emt 0:04:32]} g6 {[%emt 0:06:06]} 29. Rd1 {[%emt 0:02:24]} Red6 {[%emt 0:04:27]} 30. Ree1 {[%emt 0:00:44]} Nh5 {[%emt 0:01:24]} 31. Kf2 {[%emt 0:03:11]} Bc8 {[%emt 0:01:34]} 32. Rd5 {[%emt 0:02:26]} Rxd5 {[%emt 0:01:54]} 33. exd5 {[%emt 0:00:10]} Bxh3 {[%emt 0:06:37]} 34. Qe4 {[%emt 0:00:47]} Re8 {[%emt 0:00:45]} 35. Qe3 {[%emt 0:00:43]} e4 {[%emt 0:03:10]} 36. f4 {[%emt 0:02:42]} Qd8 {[%emt 0:01:03]} 37. Ng2 {[%emt 0:00:29]} Nf6 {[%emt 0:00:28]} 38. Qxc5 {[%emt 0:00:27]} Ng4+ {[%emt 0:00:29]} 39. Kg1 {[%emt 0:00:04]} Qf6 {[%emt 0:00:32]} 40. Qd4 {[%emt 0:00:50]} Qf5 {[%emt 0:00:05]} 41. Nh4 {[%emt 0:05:32]} Qh5 {[%emt 0:04:03]} 42. d6 {[%emt 0:08:09]} e3 {[%emt 0:01:55]} 43. d7 {[%emt 0:02:48]} Rd8 {[%emt 0:00:01]} 44. c5 {[%emt 0:00:39]} g5 {[%emt 0:06:04]} 45. c6 {[%emt 0:01:20]} 1-0

[Event "FIDE World Junior U20-ch Girls 2025"]
[Site "Petrovac"]
[Date "2025.03.01"]
[Round "5.27"]
[White "Yildiz, Elif Zeren"]
[Black "Imomkuzieva, Nilufarkhon"]
[Result "1/2-1/2"]
[Annotator "NA"]
[ECO "B10"]
[WhiteElo "2160"]
[BlackElo "1983"]
[PlyCount "98"]
[EventDate "2025.02.23"]
[EventType "swiss"]
[EventCountry "MNE"]
[SourceTitle "playchess.com"]
[Source "ChessBase"]
[SourceQuality "1"]
[TimeControl "40/5400+30:1800+30"]

1. e4 {[%emt 0:00:04]} c6 {[%emt 0:00:06]} 2. Nf3 {[%emt 0:00:13]} d5 {[%emt 0:00:09]} 3. d3 {[%emt 0:00:04]} Bg4 {[%emt 0:02:52]} 4. Nbd2 {[%emt 0:00:31]} Nd7 {[%emt 0:01:14]} 5. h3 {[%emt 0:04:41]} Bxf3 {[%emt 0:04:16]} 6. Qxf3 {[%emt 0:02:20]} Ngf6 {[%emt 0:00:58]} 7. g3 {[%emt 0:03:30]} e5 {[%emt 0:00:44]} 8. Bg2 {[%emt 0:01:10]} Bd6 {[%emt 0:00:46]} 9. O-O {[%emt 0:00:29]} Qc7 {[%emt 0:05:10]} 10. Qe2 {[%emt 0:07:20]} O-O {[%emt 0:00:52]} 11. Rd1 {[%emt 0:09:16]} d4 {[%emt 0:05:51]} 12. Nc4 {[%emt 0:03:22]} b5 {[%emt 0:00:54]} 13. Nxd6 {[%emt 0:01:25]} Qxd6 {[%emt 0:00:08]} 14. f4 {[%emt 0:04:47]} Ne8 {[%emt 0:01:17]} 15. fxe5 {[%emt 0:07:02]} Nxe5 {[%emt 0:00:11]} 16. Bf4 {[%emt 0:06:50]} Nc7 {[%emt 0:03:11]} 17. g4 {[%emt 0:06:27]} Ne6 {[%emt 0:00:42]} 18. Bg3 {[%emt 0:01:19]} f6 {[%emt 0:01:02]} 19. Rf1 {[%emt 0:01:10]} Qe7 {[%emt 0:15:42]} 20. Rf5 {[%emt 0:08:01]} g6 {[%emt 0:00:55]} 21. Rf2 {[%emt 0:00:04]} g5 {[%emt 0:00:34]} 22. Raf1 {[%emt 0:03:38]} Ng6 {[%emt 0:01:12]} 23. Rf5 {[%emt 0:01:07]} Ngf4 {[%emt 0:05:54]} 24. Bxf4 {[%emt 0:00:19]} Nxf4 {[%emt 0:00:06]} 25. Qf2 {[%emt 0:00:42]} Rae8 {[%emt 0:02:56]} 26. Re1 {[%emt 0:05:48]} Qd8 {[%emt 0:00:21]} 27. Qd2 {[%emt 0:06:36]} Re5 {[%emt 0:00:40]} 28. Rf1 {[%emt 0:05:40]} Qd6 {[%emt 0:02:08]} 29. h4 {[%emt 0:03:11]} h6 {[%emt 0:00:34]} 30. R1xf4 {[%emt 0:05:34]} gxf4 {[%emt 0:02:42]} 31. Qxf4 {[%emt 0:00:01]} Kg7 {[%emt 0:02:47]} 32. g5 {[%emt 0:00:48]} Re6 {[%emt 0:14:02]} 33. gxh6+ {[%emt 0:00:06]} Kh8 {[%emt 0:00:10]} 34. Bh3 {[%emt 0:01:52]} Qb4 {[%emt 0:07:44]} 35. b3 {[%emt 0:01:34]} Qe1+ {[%emt 0:00:33]} 36. Kh2 {[%emt 0:00:00]} Rg8 {[%emt 0:00:54]} 37. Qf2 {[%emt 0:00:02]} Qxf2+ {[%emt 0:00:59]} 38. Rxf2 {[%emt 0:00:01]} Rd6 {[%emt 0:00:05]} 39. Bf5 {[%emt 0:00:42]} c5 {[%emt 0:00:19]} 40. h5 {[%emt 0:00:53]} Ra6 {[%emt 0:02:00]} 41. Bg6 {[%emt 0:30:32]} Rf8 {[%emt 0:34:59]} 42. Rf5 {[%emt 0:00:00]} c4 {[%emt 0:00:00]} 43. Rxb5 {[%emt 0:00:00]} cxd3 {[%emt 0:00:00]} 44. cxd3 {[%emt 0:00:00]} Rxa2+ {[%emt 0:00:00]} 45. Kg3 {[%emt 0:00:00]} Rd2 {[%emt 0:00:00]} 46. Rb7 {[%emt 0:00:00]} Rxd3+ {[%emt 0:00:00]} 47. Kf4 {[%emt 0:00:00]} Rc3 {[%emt 0:00:00]} 48. Rh7+ {[%emt 0:00:00]} Kg8 {[%emt 0:00:00]} 49. Rg7+ {[%emt 0:00:00]} Kh8 {[%emt 0:00:00]} 1/2-1/2

[Event "FIDE World Junior U20-ch Girls 2025"]
[Site "Petrovac"]
[Date "2025.03.01"]
[Round "5.28"]
[White "Tarasenka, Aliaksandra"]
[Black "Ostensson, Julia"]
[Result "1-0"]
[Annotator "NA"]
[ECO "B41"]
[WhiteElo "2139"]
[BlackElo "1979"]
[PlyCount "111"]
[EventDate "2025.02.23"]
[EventType "swiss"]
[EventCountry "MNE"]
[SourceTitle "playchess.com"]
[Source "ChessBase"]
[SourceQuality "1"]
[TimeControl "40/5400+30:1800+30"]

1. e4 {[%emt 0:00:02]} c5 {[%emt 0:00:05]} 2. Nf3 {[%emt 0:00:09]} e6 {[%emt 0:00:20]} 3. d4 {[%emt 0:00:13]} cxd4 {[%emt 0:00:05]} 4. Nxd4 {[%emt 0:00:06]} a6 {[%emt 0:00:08]} 5. c4 {[%emt 0:00:15]} Nf6 {[%emt 0:00:04]} 6. Nc3 {[%emt 0:00:08]} Qc7 {[%emt 0:00:04]} 7. a3 {[%emt 0:00:25]} b6 {[%emt 0:00:04]} 8. Bd3 {[%emt 0:02:46]} Bb7 {[%emt 0:00:05]} 9. f4 {[%emt 0:00:29]} Nc6 {[%emt 0:00:11]} 10. Nxc6 {[%emt 0:00:29]} Qxc6 {[%emt 0:00:04]} 11. Qe2 {[%emt 0:00:42]} Bc5 {[%emt 0:00:25]} 12. Be3 {[%emt 0:00:08]} Bxe3 {[%emt 0:00:45]} 13. Qxe3 {[%emt 0:00:07]} Qc5 {[%emt 0:01:49]} 14. Qxc5 {[%emt 0:00:21]} bxc5 {[%emt 0:00:05]} 15. e5 {[%emt 0:00:43]} Ng4 {[%emt 0:03:08]} 16. O-O {[%emt 0:00:48]} g6 {[%emt 0:28:06]} 17. Rae1 {[%emt 0:13:42]} Nh6 {[%emt 0:05:15]} 18. Be4 {[%emt 0:03:39]} Rb8 {[%emt 0:00:06]} 19. Rf2 {[%emt 0:02:33]} Ke7 {[%emt 0:02:11]} 20. Rd2 {[%emt 0:10:10]} Nf5 {[%emt 0:10:27]} 21. Red1 {[%emt 0:09:03]} Rhd8 {[%emt 0:00:11]} 22. Kf2 {[%emt 0:10:58]} h5 {[%emt 0:11:57]} 23. g3 {[%emt 0:13:17]} a5 {[%emt 0:14:51]} 24. Bxb7 {[%emt 0:15:07]} Rxb7 {[%emt 0:00:06]} 25. Na4 {[%emt 0:00:10]} Rc7 {[%emt 0:03:39]} 26. Rd6 {[%emt 0:05:14]} Ra8 {[%emt 0:00:03]} 27. h3 {[%emt 0:02:45]} Ke8 {[%emt 0:00:12]} 28. Rb6 {[%emt 0:00:44]} Ne7 {[%emt 0:06:17]} 29. Rb5 {[%emt 0:00:45]} Nc8 {[%emt 0:06:52]} 30. b3 {[%emt 0:04:36]} Ke7 {[%emt 0:03:28]} 31. Rxc5 {[%emt 0:00:38]} Rb7 {[%emt 0:01:09]} 32. Rb5 {[%emt 0:01:36]} Rab8 {[%emt 0:01:14]} 33. Rxb7 {[%emt 0:01:38]} Rxb7 {[%emt 0:00:04]} 34. Rd3 {[%emt 0:00:06]} d6 {[%emt 0:00:58]} 35. Ke3 {[%emt 0:01:10]} f6 {[%emt 0:01:34]} 36. exf6+ {[%emt 0:00:29]} Kxf6 {[%emt 0:00:07]} 37. Nc3 {[%emt 0:00:06]} Ke7 {[%emt 0:02:10]} 38. Ne4 {[%emt 0:01:32]} Rb6 {[%emt 0:00:40]} 39. Kd4 {[%emt 0:00:51]} Na7 {[%emt 0:00:29]} 40. Kc3 {[%emt 0:00:17]} Rc6 {[%emt 0:00:20]} 41. a4 {[%emt 0:14:15]} d5 {[%emt 0:02:12]} 42. Nd2 {[%emt 0:02:08]} Nc8 {[%emt 0:00:03]} 43. Kb2 {[%emt 0:03:47]} Nb6 {[%emt 0:00:16]} 44. cxd5 {[%emt 0:00:18]} exd5 {[%emt 0:00:16]} 45. Nf3 {[%emt 0:01:02]} Kf6 {[%emt 0:01:49]} 46. g4 {[%emt 0:01:57]} hxg4 {[%emt 0:00:18]} 47. hxg4 {[%emt 0:00:03]} Re6 {[%emt 0:00:17]} 48. g5+ {[%emt 0:00:37]} Ke7 {[%emt 0:00:16]} 49. Ne5 {[%emt 0:02:26]} Rd6 {[%emt 0:00:10]} 50. Kc3 {[%emt 0:02:05]} Re6 {[%emt 0:07:23]} 51. Kd4 {[%emt 0:00:27]} Nc8 {[%emt 0:08:10]} 52. Rc3 {[%emt 0:01:07]} Nd6 {[%emt 0:00:17]} 53. Rc7+ {[%emt 0:00:50]} Kd8 {[%emt 0:00:17]} 54. Rd7+ {[%emt 0:00:09]} Ke8 {[%emt 0:00:19]} 55. Kxd5 {[%emt 0:00:08]} Rxe5+ {[%emt 0:00:36]} 56. fxe5 {[%emt 0:00:06]} 1-0

[Event "FIDE World Junior U20-ch Girls 2025"]
[Site "Petrovac"]
[Date "2025.03.01"]
[Round "5.29"]
[White "Djerroud, Chahrazed"]
[Black "Mrittika Mallick"]
[Result "1-0"]
[Annotator "NA"]
[ECO "B15"]
[WhiteElo "1914"]
[BlackElo "2058"]
[PlyCount "71"]
[EventDate "2025.02.23"]
[EventType "swiss"]
[EventCountry "MNE"]
[SourceTitle "playchess.com"]
[Source "ChessBase"]
[SourceQuality "1"]
[TimeControl "40/5400+30:1800+30"]

1. e4 {[%emt 0:00:02]} c6 {[%emt 0:00:08]} 2. d4 {[%emt 0:00:15]} d5 {[%emt 0:00:06]} 3. Nd2 {[%emt 0:00:07]} dxe4 {[%emt 0:00:07]} 4. Nxe4 {[%emt 0:00:02]} Nf6 {[%emt 0:00:11]} 5. Nxf6+ {[%emt 0:00:05]} exf6 {[%emt 0:00:06]} 6. c3 {[%emt 0:00:14]} Bd6 {[%emt 0:00:09]} 7. Bd3 {[%emt 0:00:17]} O-O {[%emt 0:00:23]} 8. Qc2 {[%emt 0:01:59]} c5 {[%emt 0:00:35]} 9. Bxh7+ {[%emt 0:01:48]} Kh8 {[%emt 0:00:08]} 10. dxc5 {[%emt 0:00:17]} Bxc5 {[%emt 0:00:12]} 11. Be4 {[%emt 0:00:37]} f5 {[%emt 0:06:00]} 12. Bd3 {[%emt 0:10:40]} Nc6 {[%emt 0:02:11]} 13. Bf4 {[%emt 0:06:05]} Re8+ {[%emt 0:14:36]} 14. Ne2 {[%emt 0:01:28]} g5 {[%emt 0:02:50]} 15. Bd2 {[%emt 0:16:33]} Ne5 {[%emt 0:07:00]} 16. Bb5 {[%emt 0:00:33]} Bd7 {[%emt 0:06:11]} 17. Bxd7 {[%emt 0:00:25]} Nxd7 {[%emt 0:04:07]} 18. Qxf5 {[%emt 0:06:44]} Re5 {[%emt 0:06:23]} 19. Qxf7 {[%emt 0:01:56]} Qe8 {[%emt 0:01:17]} 20. Qf3 {[%emt 0:01:21]} Qe6 {[%emt 0:02:04]} 21. O-O-O {[%emt 0:08:16]} g4 {[%emt 0:08:52]} 22. Qd3 {[%emt 0:04:12]} Rxe2 {[%emt 0:02:04]} 23. Be3 {[%emt 0:01:47]} Rxe3 {[%emt 0:04:00]} 24. fxe3 {[%emt 0:00:44]} Bxe3+ {[%emt 0:03:28]} 25. Kb1 {[%emt 0:00:35]} Nc5 {[%emt 0:00:12]} 26. Qc2 {[%emt 0:01:10]} a5 {[%emt 0:01:51]} 27. Rhe1 {[%emt 0:02:10]} a4 {[%emt 0:00:26]} 28. Qe2 {[%emt 0:03:34]} Re8 {[%emt 0:01:14]} 29. h3 {[%emt 0:01:13]} g3 {[%emt 0:06:28]} 30. Qh5+ {[%emt 0:04:35]} Kg7 {[%emt 0:03:48]} 31. Rd4 {[%emt 0:02:34]} b6 {[%emt 0:07:11]} 32. Rg4+ {[%emt 0:04:50]} Kf8 {[%emt 0:00:09]} 33. Qh7 {[%emt 0:02:12]} Re7 {[%emt 0:03:48]} 34. Qh8+ {[%emt 0:01:03]} Kf7 {[%emt 0:00:07]} 35. Qg8+ {[%emt 0:01:17]} Kf6 {[%emt 0:00:21]} 36. Qg6+ {[%emt 0:00:47]} 1-0

[Event "FIDE World Junior U20-ch Girls 2025"]
[Site "Petrovac"]
[Date "2025.03.01"]
[Round "5.30"]
[White "Liuviann, Cecilia Natalie"]
[Black "Zhou, Shumeng"]
[Result "1-0"]
[Annotator "NA RC"]
[ECO "C42"]
[WhiteElo "1964"]
[BlackElo "2049"]
[PlyCount "221"]
[EventDate "2025.02.23"]
[EventType "swiss"]
[EventCountry "MNE"]
[SourceTitle "playchess.com"]
[Source "ChessBase"]
[SourceQuality "1"]
[TimeControl "40/5400+30:1800+30"]

1. e4 {[%emt 0:00:07]} e5 {[%emt 0:00:04]} 2. Nf3 {[%emt 0:00:07]} Nf6 {[%emt 0:00:04]} 3. Nxe5 {[%emt 0:00:15]} d6 {[%emt 0:00:03]} 4. Nf3 {[%emt 0:00:07]} Nxe4 {[%emt 0:00:06]} 5. Nc3 {[%emt 0:00:09]} Nxc3 {[%emt 0:00:03]} 6. dxc3 {[%emt 0:00:07]} Be7 {[%emt 0:00:03]} 7. Be3 {[%emt 0:00:09]} O-O {[%emt 0:00:06]} 8. Qd2 {[%emt 0:00:04]} Nd7 {[%emt 0:00:03]} 9. O-O-O {[%emt 0:00:22]} Nf6 {[%emt 0:00:05]} 10. h4 {[%emt 0:01:46]} c5 {[%emt 0:00:04]} 11. c4 {[%emt 0:14:30]} b5 {[%emt 0:02:50]} 12. Bg5 {[%emt 0:36:18]} Be6 {[%emt 0:07:00]} 13. cxb5 {[%emt 0:04:27]} a6 {[%emt 0:05:57]} 14. bxa6 {[%emt 0:02:17]} Qb6 {[%emt 0:00:14]} 15. c4 {[%emt 0:07:33]} Rxa6 {[%emt 0:02:29]} 16. a3 {[%emt 0:00:07]} Rb8 {[%emt 0:09:25]} 17. Qc2 {[%emt 0:04:20]} Ra4 {[%emt 0:05:46]} 18. Rd2 {[%emt 0:03:34]} Qa6 {[%emt 0:01:07]} 19. Bd3 {[%emt 0:06:32]} Bxc4 {[%emt 0:03:37]} 20. Re1 {[%emt 0:01:41]} Bxd3 {[%emt 0:10:29]} 21. Qxd3 {[%emt 0:00:29]} c4 {[%emt 0:02:15]} 22. Qc3 {[%emt 0:02:08]} Bf8 {[%emt 0:12:06]} 23. Bxf6 {[%emt 0:00:37]} gxf6 {[%emt 0:00:03]} 24. Nd4 {[%emt 0:00:13]} Bh6 {[%emt 0:03:09]} 25. Ree2 {[%emt 0:12:26]} Bxd2+ {[%emt 0:05:51]} 26. Rxd2 {[%emt 0:00:04]} Ra5 {[%emt 0:01:21]} 27. Nc6 {[%emt 0:02:28]} Qxc6 {[%emt 0:06:54]} 28. Qxa5 {[%emt 0:00:05]} Re8 {[%emt 0:01:58]} 29. Rd1 {[%emt 0:01:20]} Qxg2 {[%emt 0:05:31]} 30. Qd2 {[%emt 0:00:06]} Re6 {[%emt 0:01:04]} 31. Qf4 {[%emt 0:00:48]} Qc6 {[%emt 0:03:56]} 32. h5 {[%emt 0:00:37]} Kf8 {[%emt 0:01:55]} 33. Qh6+ {[%emt 0:00:23]} Ke7 {[%emt 0:00:00]} 34. Qxh7 {[%emt 0:00:24]} Re2 {[%emt 0:02:32]} 35. Rd2 {[%emt 0:00:36]} Re4 {[%emt 0:01:44]} 36. f3 {[%emt 0:00:33]} Re5 {[%emt 0:02:05]} 37. Qc2 {[%emt 0:00:30]} Qxf3 {[%emt 0:00:04]} 38. h6 {[%emt 0:00:23]} Qh1+ {[%emt 0:00:27]} 39. Rd1 {[%emt 0:00:04]} Qxh6+ {[%emt 0:00:04]} 40. Kb1 {[%emt 0:00:03]} Qf4 {[%emt 0:00:39]} 41. Qc3 {[%emt 0:31:14]} Qe4+ {[%emt 0:31:22]} 42. Ka2 {[%emt 0:00:00]} Qc6 {[%emt 0:00:00]} 43. Rf1 {[%emt 0:00:00]} Qb5 {[%emt 0:00:00]} 44. Rf4 {[%emt 0:00:00]} d5 {[%emt 0:00:00]} 45. Rh4 {[%emt 0:00:00]} Qb6 {[%emt 0:00:00]} 46. a4 {[%emt 0:00:00]} Re3 {[%emt 0:00:00]} 47. Qd2 {[%emt 0:00:00]} Qb3+ {[%emt 0:00:00]} 48. Kb1 {[%emt 0:00:00]} Rd3 {[%emt 0:00:00]} 49. Qe2+ {[%emt 0:00:00]} Kd6 {[%emt 0:00:00]} 50. Rh1 {[%emt 0:00:00]} Qxa4 {[%emt 0:00:00]} 51. Qh2+ {[%emt 0:00:00]} Kc6 {[%emt 0:00:00]} 52. Qe2 {[%emt 0:00:00]} Kd6 {[%emt 0:00:00]} 53. Qh2+ {[%emt 0:00:00]} Kc6 {[%emt 0:00:00]} 54. Qe2 {[%emt 0:00:00]} Qa7 {[%emt 0:00:00]} 55. Rf1 {[%emt 0:00:00]} Qe3 {[%emt 0:00:00]} 56. Rxf6+ {[%emt 0:00:00]} Kc5 {[%emt 0:00:00]} 57. Qg4 {[%emt 0:00:00]} Qe1+ {[%emt 0:00:00]} 58. Ka2 {[%emt 0:00:00]} Qe8 {[%emt 0:00:00]} 59. Qg1+ {[%emt 0:00:00]} Rd4 {[%emt 0:00:00]} 60. Ra6 {[%emt 0:00:00]} Qb5 {[%emt 0:00:00]} 61. Ra3 {[%emt 0:00:00]} Qb6 {[%emt 0:00:00]} 62. Qe3 {[%emt 0:00:00]} Kd6 {[%emt 0:00:16]} 63. Qh6+ {[%emt 0:00:03]} Kc5 {[%emt 0:01:04]} 64. Qf8+ {[%emt 0:00:22]} Kb5 {[%emt 0:01:48]} 65. Qe8+ {[%emt 0:00:20]} Kc5 {[%emt 0:00:11]} 66. Qc8+ {[%emt 0:00:41]} Kd6 {[%emt 0:01:29]} 67. Ra6 {[%emt 0:00:12]} Qxa6+ {[%emt 0:00:02]} 68. Qxa6+ {[%emt 0:00:06]} Ke5 {[%emt 0:00:02]} 69. Qa7 {[%emt 0:04:29]} f5 {[%emt 0:00:23]} 70. b4 {[%emt 0:00:12]} cxb3+ {[%emt 0:00:20]} 71. Kxb3 {[%emt 0:00:06]} Re4 {[%emt 0:01:52]} 72. Qc7+ {[%emt 0:00:38]} Ke6 {[%emt 0:00:07]} 73. Qc8+ {[%emt 0:02:04]} Ke5 {[%emt 0:00:06]} 74. Qb8+ {[%emt 0:00:25]} Ke6 {[%emt 0:00:07]} 75. Kc3 {[%emt 0:00:07]} d4+ {[%emt 0:01:28]} 76. Kc4 {[%emt 0:00:17]} Kf6 {[%emt 0:00:08]} 77. Qg8 {[%emt 0:00:39]} Ke5 {[%emt 0:00:13]} 78. Qg5 {[%emt 0:01:25]} Ke6 {[%emt 0:00:19]} 79. Kc5 {[%emt 0:00:50]} Rg4 {[%emt 0:04:50]} 80. Qh6+ {[%emt 0:00:12]} Ke5 {[%emt 0:00:27]} 81. Qd6+ {[%emt 0:00:10]} Ke4 {[%emt 0:00:03]} 82. Qxd4+ {[%emt 0:00:12]} Kf3 {[%emt 0:00:03]} 83. Qd3+ {[%emt 0:00:11]} Kf4 {[%emt 0:00:17]} 84. Kd5 {[%emt 0:01:43]} Kg5 {[%emt 0:00:19]} 85. Qd2+ {[%emt 0:00:21]} Kg6 {[%emt 0:00:36]} 86. Qh2 {[%emt 0:01:26]} Re4 {[%emt 0:00:05]} 87. Qh8 {[%emt 0:00:27]} Kg5 {[%emt 0:00:15]} 88. Qg7+ {[%emt 0:00:18]} Kf4 {[%emt 0:00:47]} 89. Qh6+ {[%emt 0:01:11]} Kg4 {[%emt 0:00:05]} 90. Qg6+ {[%emt 0:00:07]} Kf4 {[%emt 0:00:04]} 91. Qh5 {[%emt 0:01:44]} Re5+ {[%emt 0:00:37]} 92. Kd6 {[%emt 0:00:06]} Re4 {[%emt 0:00:45]} 93. Qg6 {[%emt 0:00:55]} Re3 {[%emt 0:00:39]} 94. Qh6+ {[%emt 0:00:21]} Kf3 {[%emt 0:00:07]} 95. Qh5+ {[%emt 0:00:30]} Kf4 {[%emt 0:00:10]} 96. Qh2+ {[%emt 0:01:44]} Kf3 {[%emt 0:00:17]} 97. Qh3+ {[%emt 0:00:21]} Kf4 {[%emt 0:00:16]} 98. Qf1+ {[%emt 0:00:19]} Kg3 {[%emt 0:01:07]} 99. Qxf5 {[%emt 0:00:07]} Re2 {[%emt 0:00:28]} 100. Kd5 {[%emt 0:00:24]} Re1 {[%emt 0:00:45]} 101. Kd4 {[%emt 0:00:25]} Re2 {[%emt 0:00:22]} 102. Kd3 {[%emt 0:01:10]} Rf2 {[%emt 0:00:53]} 103. Qg6+ {[%emt 0:00:06]} Kf3 {[%emt 0:00:13]} 104. Qg5 {[%emt 0:00:18]} Rf1 {[%emt 0:00:12]} 105. Qf5+ {[%emt 0:00:18]} Kg2 {[%emt 0:00:05]} 106. Qg4+ {[%emt 0:00:05]} Kf2 {[%emt 0:00:06]} 107. Qe2+ {[%emt 0:00:25]} Kg1 {[%emt 0:00:05]} 108. Ke3 {[%emt 0:00:28]} Rc1 {[%emt 0:00:35]} 109. Qg4+ {[%emt 0:01:08]} Kh1 {[%emt 0:00:07]} 110. Kd2 {[%emt 0:00:21]} Rc5 {[%emt 0:01:21]} 111. Qh3+ {[%emt 0:00:14]} 1-0

[Event "FIDE World Junior U20-ch Girls 2025"]
[Site "Petrovac"]
[Date "2025.03.01"]
[Round "5.31"]
[White "Blokhin, Sofia"]
[Black "Nguyen Thien Ngan"]
[Result "1-0"]
[Annotator "NA"]
[ECO "C25"]
[WhiteElo "2020"]
[BlackElo "1923"]
[PlyCount "93"]
[EventDate "2025.02.23"]
[EventType "swiss"]
[EventCountry "MNE"]
[SourceTitle "playchess.com"]
[Source "ChessBase"]
[SourceQuality "1"]
[TimeControl "40/5400+30:1800+30"]

1. e4 {[%emt 0:00:02]} e5 {[%emt 0:00:06]} 2. Nc3 {[%emt 0:00:05]} Bc5 {[%emt 0:00:06]} 3. Bc4 {[%emt 0:00:09]} d6 {[%emt 0:00:05]} 4. d3 {[%emt 0:00:14]} Nc6 {[%emt 0:00:10]} 5. Na4 {[%emt 0:19:03]} Bb6 {[%emt 0:00:07]} 6. Nxb6 {[%emt 0:00:21]} axb6 {[%emt 0:00:07]} 7. a3 {[%emt 0:02:35]} Nf6 {[%emt 0:11:02]} 8. Bg5 {[%emt 0:08:52]} h6 {[%emt 0:00:51]} 9. Bh4 {[%emt 0:01:24]} Be6 {[%emt 0:05:56]} 10. Bxe6 {[%emt 0:04:50]} fxe6 {[%emt 0:00:07]} 11. f3 {[%emt 0:04:18]} g5 {[%emt 0:04:30]} 12. Bf2 {[%emt 0:02:18]} Qd7 {[%emt 0:09:03]} 13. Ne2 {[%emt 0:03:54]} Rg8 {[%emt 0:02:40]} 14. Qd2 {[%emt 0:02:50]} b5 {[%emt 0:02:50]} 15. d4 {[%emt 0:11:38]} exd4 {[%emt 0:02:43]} 16. Nxd4 {[%emt 0:02:43]} Nxd4 {[%emt 0:02:55]} 17. Bxd4 {[%emt 0:02:10]} e5 {[%emt 0:01:00]} 18. Bf2 {[%emt 0:01:41]} h5 {[%emt 0:11:58]} 19. O-O-O {[%emt 0:02:21]} Ra4 {[%emt 0:03:01]} 20. Kb1 {[%emt 0:02:32]} Qc6 {[%emt 0:11:48]} 21. Rhe1 {[%emt 0:01:02]} b4 {[%emt 0:13:28]} 22. axb4 {[%emt 0:10:28]} Qc4 {[%emt 0:08:57]} 23. b3 {[%emt 0:02:13]} Rxb4 {[%emt 0:05:51]} 24. Kb2 {[%emt 0:01:16]} Kf7 {[%emt 0:01:04]} 25. Ra1 {[%emt 0:00:51]} Qb5 {[%emt 0:00:30]} 26. Ra3 {[%emt 0:01:10]} Nd7 {[%emt 0:01:51]} 27. c3 {[%emt 0:01:37]} Rc4 {[%emt 0:00:14]} 28. Qe2 {[%emt 0:02:03]} Rc5 {[%emt 0:00:16]} 29. Bxc5 {[%emt 0:00:23]} Qxc5 {[%emt 0:00:01]} 30. Rea1 {[%emt 0:01:10]} Nb6 {[%emt 0:00:43]} 31. Ra5 {[%emt 0:01:16]} Qc6 {[%emt 0:00:09]} 32. c4 {[%emt 0:00:39]} Nd7 {[%emt 0:01:33]} 33. Qd2 {[%emt 0:01:00]} g4 {[%emt 0:00:44]} 34. Rf1 {[%emt 0:01:02]} g3 {[%emt 0:00:31]} 35. hxg3 {[%emt 0:00:39]} Rxg3 {[%emt 0:00:01]} 36. Qf2 {[%emt 0:01:54]} h4 {[%emt 0:00:40]} 37. f4 {[%emt 0:00:40]} Kg7 {[%emt 0:00:49]} 38. fxe5 {[%emt 0:01:01]} dxe5 {[%emt 0:00:16]} 39. Qf7+ {[%emt 0:01:31]} Kh6 {[%emt 0:00:19]} 40. Ra8 {[%emt 0:01:15]} Rxg2+ {[%emt 0:00:53]} 41. Ka1 {[%emt 0:31:29]} Nb8 {[%emt 0:07:35]} 42. Rf6+ {[%emt 0:00:00]} Qxf6 {[%emt 0:00:38]} 43. Qxf6+ {[%emt 0:00:00]} Rg6 {[%emt 0:00:10]} 44. Qxh4+ {[%emt 0:00:00]} Kg7 {[%emt 0:00:04]} 45. Rxb8 {[%emt 0:00:00]} b6 {[%emt 0:00:06]} 46. Qe7+ {[%emt 0:00:00]} Kh6 {[%emt 0:00:10]} 47. Rh8# {[%emt 0:00:00]} 1-0